fUST/lending_fUST_20250805
["ID","MTS","AMOUNT","RATE_DAILY","PERIOD"]
[377424927,1754407845420,-460.0,0.00027914,2]
[377424928,1754407845430,-2885.27,0.00027914,2]
[377424929,1754407845439,-689.77,0.00027914,2]
[377424930,1754407845448,-460.0,0.00027914,2]
[377424931,1754407845458,-460.0,0.00027914,2]
[377424932,1754407845468,-460.0,0.00027914,2]
[377424933,1754407845477,-460.0,0.00027914,2]
[377424934,1754407845487,-460.0,0.00027914,2]
[377424935,1754407845496,-1367.26,0.00027914,2]
[377424936,1754407845505,-462.59173237,0.00027914,2]
[377424937,1754407845514,-460.0,0.00027914,2]
[377424938,1754407845523,-460.0,0.00027914,2]
[377424939,1754407845534,-1010.03,0.00027914,2]
[377424940,1754407845543,-460.0,0.00027914,2]
[377424941,1754407845552,-460.0,0.00027914,2]
[377424942,1754407845562,-1135.39,0.00027914,2]
[377424943,1754407845571,-460.0,0.00027914,2]
[377424944,1754407845581,-460.0,0.00027914,2]
[377424945,1754407845591,-2121.08,0.00027914,2]
[377424946,1754407845600,-460.0,0.00027914,2]
[377424947,1754407845693,-462.03503323,0.00027914,2]
[377424948,1754407845703,-463.11619846,0.00027914,2]
[377424949,1754407845713,-466.73,0.00027914,2]
[377424950,1754407845723,-460.0,0.00027914,2]
[377424951,1754407845733,-460.0,0.00027914,2]
[377424952,1754407845743,-460.0,0.00027914,2]
[377424953,1754407845752,-460.0,0.00027914,2]
[377424954,1754407845762,-460.0,0.00027914,2]
[377424955,1754407845773,-460.0,0.00027914,2]
[377424956,1754407845783,-460.0,0.00027914,2]
[377424957,1754407845792,-460.0,0.00027914,2]
[377424958,1754407845802,-460.0,0.00027914,2]
[377424959,1754407845811,-460.0,0.00027914,2]
[377424960,1754407845821,-460.0,0.00027914,2]
[377424961,1754407845832,-151.0,0.00027914,7]
[377424962,1754407845842,-272.21272732,0.00027914,2]
[377424963,1754407845851,-151.0,0.00027914,7]
[377424964,1754407845860,-460.0,0.00027914,2]
[377424965,1754407845870,-460.0,0.00027914,2]
[377424966,1754407845879,-460.0,0.00027914,2]
[377424967,1754407845888,-1904.1789906,0.00027935,2]
[377424968,1754407845898,-465.31123212,0.00027935,2]
[377424969,1754407845907,-460.0,0.00027945,2]
[377424970,1754407845916,-462.69826856,0.00027945,2]
[377424971,1754407845926,-221.66191212,0.00027945,2]
[377424972,1754407845937,-460.0,0.00027945,2]
[377424973,1754407845947,-460.0,0.00027945,2]
[377424974,1754407845956,-460.0,0.00027945,2]
[377424975,1754407845966,-460.0,0.00027945,2]
[377424976,1754407845976,-460.0,0.00027945,2]
[377424977,1754407845985,-460.0,0.00027945,2]
[377424978,1754407845994,-460.0,0.00027945,2]
[377424979,1754407846004,-460.0,0.00027945,2]
[377424980,1754407846015,-460.0,0.00027945,2]
[377424981,1754407846027,-460.0,0.00027945,2]
[377424982,1754407846036,-460.0,0.00027945,2]
[377424983,1754407846046,-669.1,0.00027945,2]
[377424984,1754407846056,-460.0,0.00027945,2]
[377424985,1754407846067,-460.0,0.00027945,2]
[377424986,1754407846077,-460.0,0.00027945,2]
[377424987,1754407846086,-470.8799975,0.00027945,2]
[377424988,1754407846098,-460.0,0.00027945,2]
[377424989,1754407846108,-460.0,0.00027945,2]
[377424991,1754407846117,-460.0,0.00027945,2]
[377424993,1754407846127,-460.0,0.00027945,2]
[377424994,1754407846137,-1909.8,0.00027945,2]
[377424995,1754407846147,-460.0,0.00027945,2]
[377424996,1754407846158,-446.51382145,0.00027945,2]
[377424998,1754407846167,-460.0,0.00027945,2]
[377424999,1754407846177,-460.0,0.00027945,2]
[377425000,1754407846186,-209.28175475,0.00027945,2]
[377425001,1754407846197,-471.69368372,0.00027945,2]
[377425002,1754407846207,-5587.66,0.00027945,2]
[377425003,1754407846218,-464.86189604,0.00027945,2]
[377425005,1754407846228,-476.44801237,0.00027945,2]
[377425007,1754407846238,-465.2347278,0.00027945,2]
[377425009,1754407846248,-460.0,0.00027945,2]
[377425011,1754407846257,-755.95,0.00027945,2]
[377425012,1754407846267,-465.19298161,0.00027945,2]
[377425013,1754407846279,-460.0,0.00027945,2]
[377425015,1754407846289,-735.68,0.00027945,2]
[377425017,1754407846298,-460.0,0.00027945,2]
[377425019,1754407846308,-460.0,0.00027945,2]
[377425021,1754407846317,-460.0,0.00027945,2]
[377425023,1754407846326,-865.94,0.00027945,2]
[377425025,1754407846337,-460.0,0.00027945,2]
[377425027,1754407846346,-460.0,0.00027945,2]
[377425029,1754407846356,-468.01154251,0.00027945,2]
[377425031,1754407846365,-460.0,0.00027945,2]
[377425033,1754407846374,-460.0,0.00027945,2]
[377425035,1754407846384,-3828.19,0.00027945,2]
[377425037,1754407846393,-460.0,0.00027945,2]
[377425039,1754407846402,-96785.42,0.00027945,2]
[377425041,1754407846412,-2646.3,0.00027945,2]
[377425043,1754407846421,-460.0,0.00027945,2]
[377425045,1754407846431,-460.0,0.00027945,2]
[377425047,1754407846440,-460.0,0.00027945,2]
[377425049,1754407846449,-982.09,0.00027945,2]
[377425051,1754407846459,-1763.44,0.00027945,2]
[377425053,1754407846468,-460.0,0.00027945,2]
[377425055,1754407846477,-855.66,0.00027945,2]
[377425057,1754407846487,-460.0,0.00027945,2]
[377425058,1754407846496,-707.6,0.00027945,2]
[377425059,1754407846505,-460.0,0.00027945,2]
[377425060,1754407846514,-460.0,0.00027945,2]
[377425061,1754407846524,-460.0,0.00027945,2]
[377425062,1754407846533,-460.0,0.00027945,2]
[377425063,1754407846543,-460.0,0.00027945,2]
[377425064,1754407846552,-702.16,0.00027945,2]
[377425065,1754407846562,-460.0,0.00027945,2]
[377425066,1754407846571,-460.0,0.00027945,2]
[377425067,1754407846582,-3546.88,0.00027945,2]
[377425068,1754407846592,-460.0,0.00027945,2]
[377425069,1754407846602,-1063.01,0.00027945,2]
[377425070,1754407846612,-460.0,0.00027945,2]
[377425071,1754407846622,-151.0,0.00027945,7]
[377425072,1754407846631,-460.0,0.00027945,2]
[377425073,1754407846641,-460.0,0.00027945,2]
[377425074,1754407846650,-772.25,0.00027945,2]
[377425075,1754407846660,-963.83,0.00027945,2]
[377425076,1754407846669,-1413.03,0.00027945,2]
[377425077,1754407846679,-460.0,0.00027945,2]
[377425078,1754407846688,-460.0,0.00027945,2]
[377425079,1754407846698,-460.0,0.00027945,2]
[377425080,1754407846707,-151.0,0.00027945,7]
[377425081,1754407846717,-1306.51,0.00027945,2]
[377425082,1754407846727,-1014.88,0.00027945,2]
[377425083,1754407846737,-151.0,0.00027945,7]
[377425084,1754407846746,-460.0,0.00027945,2]
[377425085,1754407846756,-460.0,0.00027945,2]
[377425086,1754407846765,-460.0,0.00027945,2]
[377425087,1754407846775,-460.0,0.00027945,2]
[377425088,1754407846784,-489.565294,0.00027945,7]
[377425089,1754407846794,-460.0,0.00027945,2]
[377425090,1754407846803,-489.565294,0.00027945,7]
[377425091,1754407846813,-460.0,0.00027945,2]
[377425092,1754407846822,-460.0,0.00027945,2]
[377425093,1754407846832,-460.0,0.00027945,2]
[377425094,1754407846843,-460.0,0.00027945,2]
[377425095,1754407846853,-460.0,0.00027945,2]
[377425096,1754407846862,-460.0,0.00027945,2]
[377425097,1754407846872,-151.0,0.00027945,7]
[377425098,1754407846881,-460.0,0.00027945,2]
[377425099,1754407846890,-460.0,0.00027945,2]
[377425100,1754407846899,-476.04474765,0.0002797,2]
[377425101,1754407846909,-500.0,0.00027973,5]
[377425102,1754407846918,-500.0,0.00027973,5]
[377425103,1754407846927,-500.0,0.00027973,5]
[377425104,1754407846936,-460.0,0.00027979,2]
[377425105,1754407846945,-1004.92513938,0.00027979,2]
[377425106,1754407846954,-460.0,0.00027979,2]
[377425107,1754407846963,-460.0,0.00027979,2]
[377425108,1754407846973,-389.3282061,0.00027979,2]
[377425109,1754407846982,-467.12078335,0.00027979,2]
[377425110,1754407846992,-460.0,0.00027979,2]
[377425111,1754407847001,-460.0,0.00027979,2]
[377425112,1754407847011,-460.0,0.00027979,2]
[377425113,1754407847024,-460.0,0.00027979,2]
[377425114,1754407847033,-540.0,0.00027979,2]
[377425115,1754407847042,-460.0,0.00027979,2]
[377425116,1754407847052,-460.0,0.00027979,2]
[377425117,1754407847063,-460.0,0.00027979,2]
[377425118,1754407847072,-460.0,0.00027979,2]
[377425119,1754407847081,-460.0,0.00027979,2]
[377425120,1754407847094,-460.0,0.00027979,2]
[377425121,1754407847103,-460.0,0.00027979,2]
[377425122,1754407847112,-460.0,0.00027979,2]
[377425123,1754407847122,-775.73,0.00027979,2]
[377425124,1754407847131,-467.8199143,0.00027979,2]
[377425125,1754407847140,-460.0,0.00027979,2]
[377425126,1754407847150,-463.2252116,0.00027979,2]
[377425127,1754407847159,-460.0,0.00027979,2]
[377425128,1754407847169,-460.0,0.00027979,2]
[377425129,1754407847179,-460.0,0.00027979,2]
[377425130,1754407847189,-460.0,0.00027979,2]
[377425131,1754407847199,-460.0,0.00027979,2]
[377425132,1754407847208,-460.0,0.00027979,2]
[377425133,1754407847217,-461.27481302,0.00027979,2]
[377425134,1754407847226,-460.0,0.00027979,2]
[377425135,1754407847236,-460.0,0.00027979,2]
[377425136,1754407847245,-460.0,0.00027979,2]
[377425137,1754407847254,-471.98795331,0.00027979,2]
[377425138,1754407847263,-463.24252208,0.00027979,2]
[377425139,1754407847272,-460.0,0.00027979,2]
[377425140,1754407847282,-460.0,0.00027979,2]
[377425141,1754407847291,-464.11889256,0.00027979,2]
[377425142,1754407847301,-460.0,0.00027979,2]
[377425143,1754407847311,-460.0,0.00027979,2]
[377425144,1754407847320,-268.31446626,0.00027979,2]
[377425145,1754407847409,-460.0,0.00027979,2]
[377425146,1754407847420,-460.0,0.00027979,2]
[377425147,1754407847430,-460.0,0.00027979,2]
[377425148,1754407847440,-461.93492358,0.00027979,2]
[377425149,1754407847450,-460.0,0.00027979,2]
[377425150,1754407847459,-460.0,0.00027979,2]
[377425151,1754407847469,-460.0,0.00027979,2]
[377425152,1754407847480,-398.63614994,0.00027979,2]
[377425153,1754407847490,-460.0,0.00027979,2]
[377425154,1754407847500,-460.0,0.00027979,2]
[377425155,1754407847510,-460.0,0.00027979,2]
[377425156,1754407847520,-460.0,0.00027979,2]
[377425157,1754407847530,-460.0,0.00027979,2]
[377425158,1754407847540,-460.0,0.00027979,2]
[377425159,1754407847550,-463.42322777,0.00027979,2]
[377425160,1754407847559,-460.0,0.00027979,2]
[377425161,1754407847569,-460.0,0.00027979,2]
[377425162,1754407847579,-460.0,0.00027979,2]
[377425163,1754407847588,-460.0,0.00027979,2]
[377425164,1754407847598,-460.0,0.00027979,2]
[377425165,1754407847607,-472.14,0.00027979,2]
[377425166,1754407847616,-460.0,0.00027979,2]
[377425167,1754407847626,-460.0,0.00027979,2]
[377425168,1754407847636,-151.0,0.00027979,7]
[377425169,1754407847645,-460.0,0.00027979,2]
[377425170,1754407847655,-460.0,0.00027979,2]
[377425171,1754407847665,-460.0,0.00027979,2]
[377425172,1754407847675,-151.0,0.00027979,7]
[377425173,1754407847684,-460.0,0.00027979,2]
[377425174,1754407847694,-151.0,0.00027979,7]
[377425175,1754407847703,-460.0,0.00027979,2]
[377425176,1754407847712,-462.18693587,0.00027979,2]
[377425177,1754407847722,-460.0,0.00027979,2]
[377425178,1754407847731,-489.565294,0.00027979,7]
[377425179,1754407847740,-460.0,0.00027979,2]
[377425180,1754407847750,-489.565294,0.00027979,7]
[377425181,1754407847759,-1000.0,0.00027979,2]
[377425182,1754407847769,-460.0,0.00027979,2]
[377425183,1754407847779,-460.0,0.00027979,2]
[377425184,1754407847788,-462.623948,0.00027979,2]
[377425185,1754407847798,-460.0,0.00027979,2]
[377425186,1754407847808,-460.0,0.00027979,2]
[377425187,1754407847817,-460.0,0.00027979,2]
[377425188,1754407847827,-460.0,0.00027979,2]
[377425189,1754407847838,-460.0,0.00027979,2]
[377425190,1754407847847,-460.0,0.00027979,2]
[377425191,1754407847856,-460.0,0.0002798,2]
[377425192,1754407847865,-460.0,0.0002798,2]
[377425193,1754407847875,-460.0,0.0002798,2]
[377425194,1754407847884,-460.0,0.0002798,2]
[377425195,1754407847894,-395.1115109,0.0002798,2]
[377425196,1754407847903,-460.0,0.0002798,2]
[377425197,1754407847913,-460.0,0.0002798,2]
[377425198,1754407847923,-460.0,0.0002798,2]
[377425199,1754407847932,-460.0,0.0002798,2]
[377425200,1754407847942,-460.0,0.0002798,2]
[377425201,1754407847951,-488.32902316,0.0002798,2]
[377425202,1754407847960,-460.0,0.0002798,2]
[377425203,1754407847970,-411.8078171,0.0002798,2]
[377425204,1754407847980,-460.0,0.0002798,2]
[377425205,1754407847990,-460.0,0.0002798,2]
[377425206,1754407847999,-460.0,0.0002798,2]
[377425207,1754407848009,-460.0,0.0002798,2]
[377425208,1754407848022,-456.2178715,0.0002798,2]
[377425209,1754407848031,-588.25,0.0002798,2]
[377425210,1754407848040,-460.0,0.0002798,2]
[377425211,1754407848050,-460.0,0.0002798,2]
[377425212,1754407848059,-645.07,0.0002798,2]
[377425213,1754407848069,-460.0,0.0002798,2]
[377425214,1754407848079,-1387.65,0.0002798,2]
[377425215,1754407848088,-1116.87,0.0002798,2]
[377425216,1754407848099,-460.0,0.0002798,2]
[377425217,1754407848109,-460.0,0.0002798,2]
[377425218,1754407848118,-460.0,0.0002798,2]
[377425219,1754407848127,-460.0,0.0002798,2]
[377425220,1754407848138,-460.0,0.0002798,2]
[377425221,1754407848147,-418.59930556,0.0002798,2]
[377425222,1754407848157,-1115.17,0.0002798,2]
[377425223,1754407848168,-460.0,0.0002798,2]
[377425224,1754407848179,-460.0,0.0002798,2]
[377425225,1754407848189,-1003.98,0.0002798,2]
[377425226,1754407848199,-460.0,0.0002798,2]
[377425227,1754407848209,-460.0,0.0002798,2]
[377425228,1754407848219,-1682.57,0.0002798,2]
[377425229,1754407848228,-460.0,0.0002798,2]
[377425230,1754407848238,-460.0,0.0002798,2]
[377425231,1754407848248,-208.30719459,0.00028037,2]
[377425232,1754407848258,-460.0,0.00028048,2]
[377425233,1754407848267,-6096.88,0.00028048,2]
[377425234,1754407848276,-1651.28,0.00028048,2]
[377425235,1754407848286,-1045.52,0.00028048,2]
[377425236,1754407848296,-786.04,0.00028048,2]
[377425237,1754407848306,-460.0,0.00028048,2]
[377425238,1754407848315,-460.0,0.00028048,2]
[377425239,1754407848325,-1286.05,0.00028048,2]
[377425240,1754407848335,-476.04474765,0.00028178,2]
[377425241,1754407848345,-658.0,0.00028186,2]
[377425242,1754407848354,-460.0,0.00028186,2]
[377425243,1754407848364,-2534.15,0.00028186,2]
[377425244,1754407848373,-1046.7,0.00028186,2]
[377425245,1754407848383,-1584.39,0.00028186,2]
[377425246,1754407848393,-460.0,0.00028186,2]
[377425247,1754407848403,-460.0,0.00028188,2]
[377425248,1754407848413,-460.0,0.00028188,2]
[377425249,1754407848422,-460.0,0.00028188,2]
[377425250,1754407848431,-460.0,0.00028188,2]
[377425251,1754407848441,-469.74,0.00028188,2]
[377425252,1754407848450,-460.0,0.00028188,2]
[377425253,1754407848460,-460.0,0.00028188,2]
[377425254,1754407848470,-460.0,0.00028188,2]
[377425255,1754407848480,-460.0,0.00028188,2]
[377425256,1754407848489,-460.0,0.00028188,2]
[377425257,1754407848499,-460.0,0.00028188,2]
[377425258,1754407848508,-460.0,0.00028188,2]
[377425259,1754407848517,-460.0,0.00028188,2]
[377425260,1754407848526,-836.08,0.00028188,2]
[377425261,1754407848536,-460.0,0.00028188,2]
[377425262,1754407848545,-460.0,0.00028188,2]
[377425263,1754407848555,-460.0,0.00028188,2]
[377425264,1754407848564,-1198.82,0.00028188,2]
[377425265,1754407848574,-460.0,0.00028188,2]
[377425266,1754407848583,-759.39,0.00028188,2]
[377425267,1754407848594,-460.0,0.00028188,2]
[377425268,1754407848604,-2885.27,0.00028188,2]
[377425269,1754407848613,-689.77,0.00028188,2]
[377425270,1754407848623,-460.0,0.00028188,2]
[377425271,1754407848632,-460.0,0.00028188,2]
[377425272,1754407848642,-473.21302883,0.00028188,2]
[377425273,1754407848651,-460.0,0.00028188,2]
[377425274,1754407848661,-460.0,0.00028188,2]
[377425275,1754407848670,-1367.26,0.00028188,2]
[377425276,1754407848681,-467.7913872,0.00028188,2]
[377425277,1754407848692,-460.0,0.00028188,2]
[377425278,1754407848702,-1010.03,0.00028188,2]
[377425279,1754407848712,-460.0,0.00028188,2]
[377425280,1754407848722,-460.0,0.00028188,2]
[377425281,1754407848731,-1135.39,0.00028188,2]
[377425282,1754407848740,-460.0,0.00028188,2]
[377425283,1754407848750,-460.0,0.00028188,2]
[377425284,1754407848760,-2121.08,0.00028188,2]
[377425285,1754407848770,-460.0,0.00028188,2]
[377425286,1754407848779,-466.73,0.00028188,2]
[377425287,1754407848788,-460.0,0.00028188,2]
[377425288,1754407848798,-461.2329548,0.00028188,2]
[377425289,1754407848807,-460.0,0.00028188,2]
[377425290,1754407848816,-460.0,0.00028188,2]
[377425291,1754407848826,-460.0,0.00028188,2]
[377425292,1754407848836,-460.0,0.00028188,2]
[377425293,1754407848845,-460.0,0.00028188,2]
[377425294,1754407848855,-460.0,0.00028188,2]
[377425295,1754407848864,-460.0,0.00028188,2]
[377425296,1754407848873,-461.66471203,0.00028188,2]
[377425297,1754407848882,-460.0,0.00028188,2]
[377425298,1754407848892,-460.0,0.00028188,2]
[377425299,1754407848902,-460.0,0.00028188,2]
[377425300,1754407848912,-463.32498826,0.00028188,2]
[377425301,1754407848997,-476.04474765,0.00028209,2]
[377425302,1754407849007,-900.0,0.00028219,7]
[377425303,1754407849019,-460.0,0.00028219,2]
[377425304,1754407849029,-240.10294068,0.00028219,2]
[377425305,1754407849039,-460.0,0.00028219,2]
[377425306,1754407849048,-460.0,0.00028219,2]
[377425307,1754407849059,-460.0,0.00028219,2]
[377425308,1754407849069,-460.0,0.00028219,2]
[377425309,1754407849079,-468.72809324,0.00028219,2]
[377425310,1754407849089,-460.0,0.00028219,2]
[377425311,1754407849100,-460.0,0.00028219,2]
[377425312,1754407849110,-460.0,0.00028219,2]
[377425313,1754407849120,-460.0,0.00028219,2]
[377425314,1754407849129,-669.1,0.00028219,2]
[377425315,1754407849138,-460.0,0.00028219,2]
[377425316,1754407849148,-460.0,0.00028219,2]
[377425317,1754407849157,-460.0,0.00028219,2]
[377425318,1754407849166,-215.87217929,0.00028219,2]
[377425319,1754407849175,-460.0,0.00028219,2]
[377425320,1754407849185,-460.0,0.00028219,2]
[377425321,1754407849195,-1909.8,0.00028219,2]
[377425322,1754407849204,-189.51894718,0.00028219,2]
[377425323,1754407849214,-190.16099976,0.00028219,2]
[377425324,1754407849223,-460.0,0.00028219,2]
[377425325,1754407849233,-5587.66,0.00028219,2]
[377425326,1754407849243,-460.0,0.00028219,2]
[377425327,1754407849253,-755.95,0.00028219,2]
[377425328,1754407849263,-735.68,0.00028219,2]
[377425329,1754407849273,-460.0,0.00028219,2]
[377425330,1754407849282,-460.0,0.00028219,2]
[377425331,1754407849292,-464.56576644,0.00028219,2]
[377425332,1754407849302,-865.94,0.00028219,2]
[377425333,1754407849311,-460.0,0.00028219,2]
[377425334,1754407849320,-330.2731705,0.00028219,2]
[377425335,1754407849330,-460.0,0.00028219,2]
[377425336,1754407849340,-3828.19,0.00028219,2]
[377425337,1754407849349,-460.0,0.00028219,2]
[377425338,1754407849359,-2646.3,0.00028219,2]
[377425339,1754407849369,-460.0,0.00028219,2]
[377425340,1754407849378,-460.0,0.00028219,2]
[377425341,1754407849389,-982.09,0.00028219,2]
[377425342,1754407849398,-1763.44,0.00028219,2]
[377425343,1754407849408,-460.0,0.00028219,2]
[377425344,1754407849418,-855.66,0.00028219,2]
[377425345,1754407849428,-460.0,0.00028219,2]
[377425346,1754407849438,-707.6,0.00028219,2]
[377425347,1754407849448,-460.0,0.00028219,2]
[377425348,1754407849458,-460.0,0.00028219,2]
[377425349,1754407849467,-460.0,0.00028219,2]
[377425350,1754407849476,-460.0,0.00028219,2]
[377425351,1754407849486,-460.0,0.00028219,2]
[377425352,1754407849495,-702.16,0.00028219,2]
[377425353,1754407849505,-460.0,0.00028219,2]
[377425354,1754407849519,-460.0,0.00028219,2]
[377425355,1754407849528,-3546.88,0.00028219,2]
[377425356,1754407849538,-1063.01,0.00028219,2]
[377425357,1754407849551,-460.0,0.00028219,2]
[377425358,1754407849561,-460.0,0.00028219,2]
[377425359,1754407849571,-460.0,0.00028219,2]
[377425360,1754407849580,-772.25,0.00028219,2]
[377425361,1754407849593,-963.83,0.00028219,2]
[377425362,1754407849603,-1413.03,0.00028219,2]
[377425363,1754407849613,-460.0,0.00028219,2]
[377425364,1754407849623,-265.73440307,0.00028219,2]
[377425365,1754407849632,-460.0,0.00028219,2]
[377425366,1754407849642,-1306.51,0.00028219,2]
[377425367,1754407849652,-1014.88,0.00028219,2]
[377425368,1754407849662,-460.0,0.00028219,2]
[377425369,1754407849671,-471.61997683,0.00028219,2]
[377425370,1754407849681,-460.0,0.00028219,2]
[377425371,1754407849691,-467.64373844,0.00028219,2]
[377425372,1754407849700,-460.0,0.00028219,2]
[377425373,1754407849709,-460.0,0.00028219,2]
[377425374,1754407849719,-460.0,0.00028219,2]
[377425375,1754407849728,-460.0,0.00028219,2]
[377425376,1754407849739,-463.62839765,0.00028219,2]
[377425377,1754407849750,-460.0,0.00028219,2]
[377425378,1754407849759,-460.0,0.00028219,2]
[377425379,1754407849769,-460.0,0.00028219,2]
[377425380,1754407849779,-1000.0,0.00028221,5]
[377425381,1754407849788,-476.04474765,0.00028244,2]
[377425382,1754407849798,-460.0,0.00028253,2]
[377425383,1754407849807,-463.58769585,0.00028253,2]
[377425384,1754407849817,-460.0,0.00028253,2]
[377425385,1754407849827,-460.0,0.00028253,2]
[377425386,1754407849838,-460.0,0.00028253,2]
[377425387,1754407849848,-460.0,0.00028253,2]
[377425388,1754407849858,-460.0,0.00028253,2]
[377425389,1754407849868,-460.0,0.00028253,2]
[377425390,1754407849877,-460.0,0.00028253,2]
[377425391,1754407849887,-463.14988833,0.00028253,2]
[377425392,1754407849896,-460.0,0.00028253,2]
[377425393,1754407849906,-460.0,0.00028253,2]
[377425394,1754407849916,-460.0,0.00028253,2]
[377425395,1754407849925,-460.0,0.00028253,2]
[377425396,1754407849934,-775.73,0.00028253,2]
[377425397,1754407849944,-573.75347117,0.00028253,2]
[377425398,1754407849954,-460.0,0.00028253,2]
[377425399,1754407849963,-460.0,0.00028253,2]
[377425400,1754407849973,-460.0,0.00028253,2]
[377425401,1754407849983,-460.0,0.00028253,2]
[377425402,1754407849992,-460.0,0.00028253,2]
[377425403,1754407850001,-460.0,0.00028253,2]
[377425404,1754407850012,-460.0,0.00028253,2]
[377425405,1754407850024,-153.19713645,0.00028253,2]
[377425406,1754407850034,-460.0,0.00028253,2]
[377425407,1754407850043,-460.0,0.00028253,2]
[377425408,1754407850053,-460.0,0.00028253,2]
[377425409,1754407850063,-365.01736245,0.00028253,2]
[377425410,1754407850073,-460.0,0.00028253,2]
[377425411,1754407850083,-460.0,0.00028253,2]
[377425412,1754407850092,-463.52940731,0.00028253,2]
[377425413,1754407850103,-460.0,0.00028253,2]
[377425414,1754407850112,-460.0,0.00028253,2]
[377425415,1754407850121,-460.0,0.00028253,2]
[377425416,1754407850130,-460.0,0.00028253,2]
[377425417,1754407850140,-460.0,0.00028253,2]
[377425418,1754407850149,-235.98932518,0.00028253,2]
[377425419,1754407850159,-460.0,0.00028253,2]
[377425420,1754407850168,-460.0,0.00028253,2]
[377425421,1754407850178,-460.0,0.00028253,2]
[377425422,1754407850188,-460.0,0.00028253,2]
[377425423,1754407850197,-460.0,0.00028253,2]
[377425424,1754407850207,-460.0,0.00028253,2]
[377425425,1754407850216,-462.96449764,0.00028253,2]
[377425426,1754407850225,-472.14,0.00028253,2]
[377425427,1754407850235,-441.08510287,0.00028253,2]
[377425428,1754407850244,-460.0,0.00028253,2]
[377425429,1754407850253,-460.0,0.00028253,2]
[377425430,1754407850263,-460.0,0.00028253,2]
[377425431,1754407850272,-460.0,0.00028253,2]
[377425432,1754407850281,-460.0,0.00028253,2]
[377425433,1754407850290,-460.0,0.00028253,2]
[377425434,1754407850300,-460.0,0.00028253,2]
[377425435,1754407850310,-460.0,0.00028253,2]
[377425436,1754407850319,-1000.0,0.00028253,2]
[377425437,1754407850328,-464.17551154,0.00028253,2]
[377425438,1754407850339,-330.34100537,0.00028253,2]
[377425439,1754407850348,-460.0,0.00028253,2]
[377425440,1754407850358,-460.0,0.00028253,2]
[377425441,1754407850367,-460.0,0.00028253,2]
[377425442,1754407850376,-460.0,0.00028253,2]
[377425443,1754407850386,-460.0,0.00028253,2]
[377425444,1754407850396,-460.0,0.00028254,2]
[377425445,1754407850476,-460.0,0.00028254,2]
[377425446,1754407850485,-460.0,0.00028254,2]
[377425447,1754407850495,-460.0,0.00028254,2]
[377425448,1754407850504,-460.0,0.00028254,2]
[377425449,1754407850513,-460.0,0.00028254,2]
[377425450,1754407850522,-460.0,0.00028254,2]
[377425451,1754407850532,-460.0,0.00028254,2]
[377425452,1754407850541,-460.0,0.00028254,2]
[377425453,1754407850551,-460.0,0.00028254,2]
[377425454,1754407850560,-460.0,0.00028254,2]
[377425455,1754407850578,-462.43896746,0.00028254,2]